bitfinex/quotes_SOLUSD_20250529
["timestamp","ask_amount","ask_price","bid_price","bid_amount"]
[1748562474550,61.82471819,166.64,166.63,16.66666666]
[1748562475746,74.45537623,166.64,166.63,16.66666666]
[1748562476133,61.82471819,166.64,166.63,16.66666666]
[1748562477451,74.45537623,166.64,166.63,16.66666666]
[1748562479640,74.45537623,166.64,166.59,8.33333333]
[1748562479641,44.64964886,166.6,166.59,8.33333333]
[1748562479851,44.64964886,166.6,166.48,6.1997]
[1748562479852,12.63065804,166.52,166.48,6.1997]
[1748562480239,12.63065804,166.52,166.48,18.83035804]
[1748562480436,12.63065804,166.5,166.47,1.5844]
[1748562480848,36.96,166.55,166.47,1.5844]
[1748562480849,12.63065804,166.51,166.47,1.5844]
[1748562481663,6.006006,166.5,166.47,14.21505804]
[1748562482644,6.00567647,166.51,166.47,14.21505804]
[1748562482833,6.00567647,166.51,166.48,12.63065804]
[1748562483152,6.00521061,166.53,166.5,12.63065804]
[1748562483655,6.00521061,166.53,166.49,12.63065804]
[1748562484165,6.00521061,166.53,166.47,28.01088471]
[1748562484346,6.00521061,166.53,166.5,12.63065804]
[1748562485844,6.00521061,166.53,166.48,0.42648471]
[1748562486031,6.00521061,166.53,166.5,12.63065804]
[1748562486931,12.63065804,166.55,166.51,12.63065804]
[1748562487126,12.63065804,166.54,166.5,12.63065804]
[1748562487369,12.63065804,166.52,166.47,40.35721961]
[1748562487558,12.63065804,166.52,166.47,1.5844]
[1748562487730,12.63065804,166.48,166.38,6.3456]
[1748562487938,12.63065804,166.48,166.39,1.5789]
[1748562488150,36.96,166.5,166.39,1.5789]
[1748562488357,66.95901048,166.49,166.39,1.5789]
[1748562488635,26.0,166.46,166.32,4.43887535]
[1748562488849,26.0,166.29,166.15,1.02804792]
[1748562489051,26.0,166.25,166.15,1.02804792]
[1748562489259,48.16,166.28,166.12,0.05246247]
[1748562489260,26.0,166.23,166.12,0.05246247]
[1748562489559,105.15613342,166.28,166.12,10.65246247]
[1748562489560,26.0,166.21,166.12,10.65246247]
[1748562489732,47.81526974,166.27,166.12,10.65246247]
[1748562489932,64.62,166.24,166.12,0.05246247]
[1748562490165,47.81526974,166.27,166.12,0.05246247]
[1748562490333,47.81526974,166.27,166.13,10.6]
[1748562490334,26.0,166.26,166.13,10.6]
[1748562490539,26.0,166.24,166.13,10.6]
[1748562490736,47.81526974,166.27,166.13,10.6]
[1748562491042,26.0,166.24,166.13,10.6]
[1748562491353,86.85136532,166.26,166.13,36.6]
[1748562491549,86.85136532,166.26,166.16,21.24239426]
[1748562491749,26.0,166.23,166.13,10.6]
[1748562491952,26.0,166.22,166.12,0.05246247]
[1748562492661,66.82,166.22,166.12,0.05246247]
[1748562493068,26.0,166.18,166.12,0.05246247]
[1748562493364,26.0,166.2,166.12,0.05246247]
[1748562493731,26.0,166.18,166.1,20.43008062]
[1748562493966,26.0,166.14,166.1,20.43008062]
[1748562494176,43.88,166.14,166.1,20.43008062]
[1748562494342,26.0,166.11,166.1,20.43008062]
[1748562495236,26.0,166.14,166.1,20.43008062]
[1748562495455,6.01793344,166.17,166.1,20.43008062]
[1748562496037,50.0,166.22,166.1,20.43008062]
[1748562496038,15.04079504,166.22,166.1,20.43008062]
[1748562496250,6.01576129,166.23,166.1,20.43008062]
[1748562496460,6.01576129,166.23,166.12,26.0]
[1748562496640,6.01576129,166.23,166.1,20.43008062]
[1748562496859,15.49504801,166.24,166.2,21.24239426]
[1748562497037,15.49504801,166.24,166.19,15.78]
[1748562497362,15.49504801,166.24,166.2,37.02239426]
[1748562497564,26.0,166.22,166.21,15.78]
[1748562498474,15.49504801,166.24,166.21,15.78]
[1748562499551,15.02921498,166.35,166.23,21.24239426]
[1748562499846,6.01178309,166.34,166.23,21.24239426]
[1748562500067,26.0,166.31,166.22,21.24239426]
[1748562500261,26.0,166.27,166.21,15.78]
[1748562501152,26.0,166.25,166.21,15.78]
[1748562501947,6.29829717,166.28,166.21,15.78]
[1748562501948,6.01397403,166.28,166.22,21.24239426]
[1748562502151,18.64964886,166.29,166.22,21.24239426]
[1748562502503,6.0114217,166.35,166.22,53.6828]
[1748562502777,6.0114217,166.35,166.29,21.24239426]
[1748562502979,6.0114217,166.35,166.3,15.78]
[1748562503144,6.0114217,166.35,166.22,54.10928471]
[1748562503145,18.64964886,166.35,166.31,15.78]
[1748562504160,0.14216157,166.34,166.31,15.78]
[1748562504359,26.0,166.32,166.31,15.78]
[1748562504870,44.79181043,166.32,166.31,15.78]
[1748562505073,50.80431644,166.32,166.31,15.78]
[1748562505277,32.01250601,166.32,166.31,15.78]
[1748562505590,32.51250601,166.32,166.31,15.78]
[1748562506586,51.16215487,166.32,166.31,15.78]
[1748562506787,51.30431644,166.32,166.31,15.78]
[1748562509290,51.16215487,166.32,166.31,15.78]
[1748562509500,26.0,166.28,166.22,15.78]
[1748562509665,18.64964886,166.27,166.22,15.78]
[1748562509865,18.79181043,166.31,166.22,37.02239426]
[1748562510083,26.0,166.28,166.22,37.02239426]
[1748562510270,26.0,166.28,166.22,15.78]
[1748562511207,32.0141925,166.28,166.22,15.78]
[1748562511567,18.64964886,166.27,166.22,15.78]
[1748562513491,6.0146758,166.26,166.22,15.78]
[1748562515196,18.64964886,166.25,166.22,15.78]
[1748562515396,26.0,166.23,166.22,15.78]
[1748562515596,32.01576129,166.23,166.22,15.78]
[1748562515802,32.01576129,166.23,166.15,110.5285]
[1748562516005,18.64964886,166.22,166.15,110.5285]
[1748562516587,18.64964886,166.22,166.15,131.77089426]
[1748562516786,47.05516452,166.23,166.16,21.24239426]
[1748562517169,47.05516452,166.23,166.15,110.5285]
[1748562517699,47.05516452,166.23,166.15,131.77089426]
[1748562517889,47.05516452,166.23,166.15,110.5285]
[1748562518497,47.05516452,166.23,166.16,21.24239426]
[1748562518691,47.05516452,166.23,166.15,131.77089426]
[1748562519073,47.05516452,166.23,166.15,110.5285]
[1748562519577,18.64964886,166.22,166.15,110.5285]
[1748562519772,21.05769808,166.21,166.15,110.5285]
[1748562519979,21.05769808,166.21,166.15,102.36]
[1748562520381,6.01648516,166.21,166.15,102.36]
[1748562520583,61.50109901,166.24,166.17,21.24239426]
[1748562520584,6.01539942,166.24,166.17,21.24239426]
[1748562520786,6.01539942,166.24,166.15,102.36]
[1748562520986,0.5,166.23,166.16,21.24239426]
[1748562521297,0.5,166.23,166.17,21.24239426]
[1748562521700,6.01612321,166.22,166.15,123.60239426]
[1748562521881,6.01612321,166.22,166.15,102.36]
[1748562522087,6.01612321,166.22,166.16,21.24239426]
[1748562522283,6.01612321,166.22,166.17,21.24239426]
[1748562522478,6.51586366,166.23,166.18,21.24239426]
[1748562522804,6.51586366,166.23,166.15,15.78]
[1748562523102,21.55526689,166.23,166.15,37.02239426]
[1748562523287,21.55526689,166.23,166.16,21.24239426]
[1748562523931,21.55526689,166.23,166.15,15.78]
[1748562524076,21.55526689,166.23,166.15,37.02239426]
[1748562524406,21.55526689,166.23,166.15,15.78]
[1748562524574,0.14216157,166.21,166.15,15.78]
[1748562524992,26.0,166.19,166.15,15.78]
[1748562525887,6.0175713,166.18,166.15,15.78]
[1748562529117,26.0,166.16,166.1,20.43008062]
[1748562529307,26.0,166.14,166.1,20.43008062]
[1748562529489,18.64964886,166.13,166.1,20.43008062]
[1748562529910,6.01974476,166.12,166.1,20.43008062]
[1748562532288,26.14216157,166.11,166.1,20.43008062]
[1748562532487,18.79181043,166.1,166.05,226.51238509]
[1748562532716,0.14216157,166.09,166.05,226.51238509]
[1748562532904,18.64964886,166.1,166.05,226.51238509]
[1748562533088,6.01974476,166.12,166.07,21.24239426]
[1748562533503,6.01974476,166.12,166.05,226.51238509]
[1748562534023,32.01938241,166.13,166.08,21.24239426]
[1748562534393,6.01938241,166.13,166.09,21.24239426]
[1748562534697,6.01938241,166.13,166.07,21.24239426]
[1748562534892,6.01938241,166.13,166.05,226.51238509]
[1748562535115,21.06783843,166.13,166.06,21.24239426]
[1748562535315,0.5,166.12,166.05,226.51238509]
[1748562535505,0.5,166.12,166.07,21.24239426]
[1748562535912,6.02010715,166.11,166.06,21.24239426]
[1748562536338,0.5,166.12,166.05,226.51238509]
[1748562536339,6.5197614,166.12,166.05,226.51238509]
[1748562536498,6.0197614,166.12,166.07,21.24239426]
[1748562537011,6.0197614,166.12,166.05,226.51238509]
[1748562537012,21.0691233,166.12,166.06,21.24239426]
[1748562537207,21.0691233,166.12,166.05,226.51238509]
[1748562537609,45.88,166.11,166.05,226.51238509]
[1748562538006,47.0691233,166.12,166.05,247.75477935]
[1748562538398,47.0691233,166.12,166.05,226.51238509]
[1748562538822,6.0197614,166.12,166.05,226.51238509]
[1748562539327,21.0691233,166.12,166.05,226.51238509]
[1748562540198,0.5,166.11,166.05,226.51238509]
[1748562540394,0.5,166.11,166.06,21.24239426]
[1748562540609,0.5,166.11,166.05,226.51238509]
[1748562540808,26.0,166.1,166.05,226.51238509]
[1748562541025,45.76,166.09,166.05,226.51238509]
[1748562541321,45.76,166.11,166.05,226.51238509]
[1748562541530,21.0691233,166.12,166.06,21.24239426]
[1748562541829,6.0197614,166.12,166.07,21.24239426]
[1748562542038,10.41003347,166.17,166.11,21.24239426]
[1748562542203,6.01793344,166.17,166.13,21.24239426]
[1748562542401,6.01793344,166.17,166.11,15.3]
[1748562542710,6.01684717,166.2,166.12,21.24239426]
[1748562542912,52.35684717,166.2,166.11,15.3]
[1748562543225,32.01684717,166.2,166.14,21.24239426]
[1748562543521,6.01684717,166.2,166.11,15.3]
[1748562543837,21.0589651,166.2,166.11,15.3]
[1748562544126,21.0589651,166.2,166.12,21.24239426]
[1748562544302,15.04211793,166.2,166.11,15.3]
[1748562544499,15.04211793,166.2,166.14,21.24239426]
[1748562544743,15.04211793,166.2,166.11,15.3]
[1748562544744,15.04211793,166.2,166.12,21.24239426]
[1748562544942,15.04211793,166.2,166.11,36.54239426]
[1748562545228,0.5,166.19,166.11,36.54239426]
[1748562545411,0.5,166.19,166.12,21.24239426]
[1748562545843,0.5,166.19,166.11,15.3]
[1748562546461,21.06149957,166.18,166.11,15.3]
[1748562546600,6.0175713,166.18,166.13,21.24239426]
[1748562546943,6.0175713,166.18,166.11,15.3]
[1748562547110,6.0175713,166.18,166.14,21.24239426]
[1748562547428,6.0175713,166.18,166.13,21.24239426]
[1748562548007,6.0175713,166.18,166.12,21.24239426]
[1748562548309,21.06149957,166.18,166.13,21.24239426]
[1748562548626,21.05769808,166.21,166.12,21.24239426]
[1748562548923,26.0,166.18,166.09,15.3]
[1748562549131,26.0,166.18,166.1,21.24239426]
[1748562549307,51.14012392,166.21,166.11,21.24239426]
[1748562549308,26.0,166.2,166.11,21.24239426]
[1748562549803,26.0,166.2,166.1,21.24239426]
[1748562550244,26.0,166.18,166.09,15.3]
[1748562550444,21.06276704,166.17,166.09,15.3]
[1748562550739,21.06276704,166.17,166.1,21.24239426]
[1748562552120,21.06276704,166.17,166.09,36.54239426]
[1748562553135,21.06276704,166.17,166.1,21.24239426]
[1748562553136,6.01793344,166.17,166.1,21.24239426]
[1748562553519,6.01793344,166.17,166.11,21.24239426]
[1748562553720,6.01793344,166.17,166.13,21.24239426]
[1748562553982,6.01793344,166.17,166.11,21.24239426]
[1748562554127,6.01793344,166.17,166.12,21.24239426]
[1748562554331,6.01793344,166.17,166.11,21.24239426]
[1748562554836,6.01720921,166.19,166.12,21.24239426]
[1748562555037,6.01720921,166.19,166.11,21.24239426]
[1748562555231,0.5,166.16,166.11,21.24239426]
[1748562555532,21.06023225,166.19,166.11,21.24239426]
[1748562555918,21.06023225,166.19,166.1,21.24239426]
[1748562556356,21.06023225,166.19,166.11,21.24239426]
[1748562557033,21.06023225,166.19,166.12,21.24239426]
[1748562558153,21.06023225,166.19,166.09,15.3]
[1748562558337,21.06023225,166.19,166.1,21.24239426]
[1748562559257,21.06023225,166.19,166.11,21.24239426]
[1748562560037,21.06023225,166.19,166.09,15.3]
[1748562560254,0.5,166.18,166.11,21.24239426]
[1748562560556,0.5,166.18,166.09,15.3]
[1748562560557,0.5,166.18,166.14,21.24239426]
[1748562560725,21.05708504,166.22,166.14,21.24239426]
[1748562560925,21.05708504,166.22,166.13,21.24239426]
[1748562562441,21.05708504,166.22,166.14,21.24239426]
[1748562562651,25.47649828,166.22,166.14,21.24239426]
[1748562562951,21.05708504,166.22,166.14,21.24239426]
[1748562563163,25.47644282,166.22,166.14,21.24239426]
[1748562563546,25.47644282,166.22,166.13,21.24239426]
[1748562563941,21.05708504,166.22,166.13,21.24239426]
[1748562564330,57.76763341,166.22,166.09,15.3]
[1748562564545,4.41995488,166.21,166.09,15.3]
[1748562564865,4.41995488,166.21,166.13,21.24239426]
[1748562565024,4.41995488,166.21,166.14,21.24239426]
[1748562565228,25.47726857,166.22,166.14,21.24239426]
[1748562565653,6.63083466,166.21,166.1,0.28432314]
[1748562565853,6.63083466,166.21,166.13,21.24239426]
[1748562565854,2.21027822,166.21,166.13,21.24239426]
[1748562566157,2.21027918,166.21,166.13,21.24239426]
[1748562566750,21.0589651,166.2,166.12,21.24239426]
[1748562566952,47.0589651,166.2,166.09,15.3]
[1748562567154,26.0,166.16,166.09,15.3]
[1748562568440,26.0,166.14,166.06,7.7973]
[1748562568842,21.06783843,166.13,166.06,7.7973]
[1748562569626,21.06783843,166.13,166.06,1.5131]
[1748562569832,26.0,166.1,166.05,226.51238509]
[1748562570758,25.49695869,166.09,166.05,226.51238509]
[1748562570936,21.07291226,166.09,166.05,226.51238509]
[1748562571142,26.0,166.06,166.05,102.61559026]
[1748562571473,45.62,166.06,166.05,102.61559026]
[1748562571633,21.07291226,166.09,166.05,102.61559026]
[1748562573659,6.02083207,166.09,166.05,102.61559026]
[1748562574082,12.64819147,166.09,166.05,102.61559026]
[1748562574285,27.70027166,166.09,166.05,102.61559026]
[1748562574471,21.07291226,166.09,166.05,102.61559026]
[1748562574677,6.02083207,166.09,166.05,102.61559026]
[1748562574873,6.02044575,166.11,166.05,102.61559026]
[1748562575084,45.6,166.1,166.05,123.85798452]
[1748562575587,6.02044575,166.11,166.05,123.85798452]
[1748562575588,51.60044575,166.11,166.05,102.61559026]
[1748562576162,51.60044575,166.11,166.05,123.85798452]
[1748562576380,51.60044575,166.11,166.05,102.61559026]
[1748562576592,51.60044575,166.11,166.05,123.85798452]
[1748562577083,51.60044575,166.11,166.06,21.24239426]
[1748562577084,6.02044575,166.11,166.06,21.24239426]
[1748562577300,6.02044575,166.11,166.07,21.24239426]
[1748562577507,46.0,166.12,166.05,108.63770667]
[1748562577803,0.5,166.12,166.05,102.61559026]
[1748562577979,6.51978033,166.12,166.07,21.24239426]
[1748562578163,0.5,166.12,166.08,21.24239426]
[1748562578365,0.5,166.12,166.09,21.24239426]
[1748562578585,0.5,166.12,166.1,21.24239426]
[1748562578789,6.0175713,166.18,166.11,21.24239426]
[1748562579017,6.0175713,166.18,166.07,1.6516]
[1748562579018,6.0175713,166.18,166.12,21.24239426]
[1748562579287,45.44,166.17,166.12,21.24239426]
[1748562579502,45.44,166.17,166.11,21.24239426]
[1748562579863,6.0175713,166.18,166.11,21.24239426]
[1748562580296,51.4175713,166.18,166.12,27.62479426]
[1748562580500,0.5,166.17,166.12,27.62479426]
[1748562580695,0.5,166.17,166.12,6.3824]
[1748562580976,6.01829561,166.16,166.12,6.3824]
[1748562581514,47.06403465,166.16,166.07,8.034]
[1748562582209,77.15551274,166.16,166.07,1.6516]
[1748562582586,26.0,166.13,166.07,1.6516]
[1748562582897,6.02010715,166.11,166.07,1.6516]
[1748562583275,21.07037504,166.11,166.05,117.81559026]
[1748562585681,6.02010715,166.11,166.06,21.24239426]
[1748562585885,6.02010715,166.11,166.07,21.24239426]
[1748562586309,6.01971888,166.13,166.08,21.24239426]
[1748562586489,6.01865783,166.15,166.1,21.24239426]
[1748562586693,6.01865783,166.15,166.11,1.655]
[1748562587008,45.38,166.16,166.12,21.24239426]
[1748562587377,26.0,166.19,166.12,21.24239426]
[1748562587378,45.36,166.17,166.12,21.24239426]
[1748562587688,26.0,166.19,166.11,22.89739426]
[1748562587889,45.38,166.17,166.11,22.89739426]
[1748562588201,0.5,166.16,166.11,1.655]
[1748562588395,45.38,166.17,166.11,1.655]
[1748562588599,45.38,166.17,166.06,24.67150715]
[1748562588600,45.38,166.17,166.06,1.5029]
[1748562588997,21.06403465,166.16,166.07,21.24239426]
[1748562589510,21.06403465,166.16,166.06,22.74529426]
[1748562590004,26.0,166.14,166.06,22.74529426]
[1748562590306,26.0,166.14,166.06,1.5029]
[1748562590908,21.06910666,166.12,166.06,1.5029]
[1748562591108,45.22,166.11,166.06,1.5029]
[1748562591407,45.22,166.11,166.05,117.81559026]
[1748562592198,45.22,166.11,166.05,102.61559026]
[1748562592199,26.0,166.1,166.05,102.61559026]
[1748562593208,6.0211946,166.08,166.05,102.61559026]
[1748562593417,51.1411946,166.08,166.05,102.61559026]
[1748562594318,51.1411946,166.08,166.05,123.85798452]
[1748562594689,6.0211946,166.08,166.05,102.61559026]
[1748562595895,6.0211946,166.08,166.06,21.24239426]
[1748562596098,6.520897,166.09,166.06,21.24239426]
[1748562596801,6.02010715,166.11,166.06,21.24239426]
[1748562597115,6.02010715,166.11,166.07,21.24239426]
[1748562597287,45.02,166.13,166.09,21.24239426]
[1748562597695,45.0,166.14,166.09,21.24239426]
[1748562597914,15.04727438,166.15,166.1,1.536]
[1748562598213,6.0190201,166.14,166.1,1.536]
[1748562600303,6.0190201,166.14,166.1,22.77839426]
[1748562600502,6.0190201,166.14,166.11,21.24239426]
[1748562600922,6.0190201,166.14,166.1,1.536]
[1748562600923,6.01793344,166.17,166.12,21.24239426]
[1748562601490,21.06276704,166.17,166.1,1.536]
[1748562601811,47.06276704,166.17,166.1,1.536]
[1748562602127,26.0,166.13,166.05,102.61559026]
[1748562602334,44.8,166.12,166.05,102.61559026]
[1748562603819,21.07037504,166.11,166.05,102.61559026]
[1748562604518,6.02010715,166.11,166.08,21.24239426]
[1748562604996,6.01966584,166.13,166.09,21.24239426]
[1748562605318,6.01966584,166.13,166.11,21.24239426]
[1748562605513,6.01829561,166.16,166.12,21.24239426]
[1748562605896,59.86552933,166.17,166.12,21.24239426]
[1748562606393,59.86552933,166.17,166.09,21.24239426]
[1748562606591,59.86552933,166.17,166.05,128.61559026]
[1748562606823,59.86552933,166.17,166.06,21.24239426]
[1748562607024,59.86552933,166.17,166.07,21.24239426]
[1748562607192,59.86552933,166.17,166.09,21.24239426]
[1748562607994,95.97312997,166.17,166.05,102.61559026]
[1748562608192,0.5,166.16,166.06,21.24239426]
[1748562608397,4.91250783,166.16,166.05,102.61559026]
[1748562608597,4.91242451,166.16,166.06,21.24239426]
[1748562609010,7.11960614,166.16,166.07,21.24239426]
[1748562609303,7.1215478,166.16,166.07,21.24239426]
[1748562609492,0.5,166.16,166.05,102.61559026]
[1748562609699,7.1222972,166.16,166.07,21.24239426]
[1748562610118,21.06530242,166.15,166.08,21.24239426]
[1748562610399,6.01865783,166.15,166.11,21.24239426]
[1748562610580,6.01865783,166.15,166.12,1.6038]
[1748562612575,6.01865783,166.15,166.08,21.24239426]
[1748562612774,21.06530242,166.15,166.09,21.24239426]
[1748562613353,21.06530242,166.15,166.07,1.5709]
[1748562613354,21.06530242,166.15,166.08,21.24239426]
[1748562614185,21.06530242,166.15,166.09,21.24239426]
[1748562614494,6.01865783,166.15,166.1,21.24239426]
[1748562615197,6.01865783,166.15,166.09,21.24239426]
[1748562615562,21.06530242,166.15,166.09,21.24239426]
[1748562616387,21.06530242,166.15,166.07,1.5709]
[1748562616558,32.56530242,166.15,166.07,1.5709]
[1748562616887,32.56530242,166.15,166.07,22.81329426]
[1748562617273,32.56530242,166.15,166.08,21.24239426]
[1748562617990,32.56530242,166.15,166.07,22.81329426]
[1748562618292,32.56530242,166.15,166.1,21.24239426]
[1748562618293,17.51865783,166.15,166.1,21.24239426]
[1748562618494,17.51865783,166.15,166.12,21.24239426]
[1748562618797,17.51865783,166.15,166.08,0.14216157]
[1748562618798,6.01865783,166.15,166.08,0.14216157]
[1748562618966,6.01865783,166.15,166.09,21.24239426]
[1748562619168,6.01865783,166.15,166.11,21.24239426]
[1748562620085,6.01865783,166.15,166.1,21.24239426]
[1748562620605,6.01865783,166.15,166.11,21.24239426]
[1748562620889,6.01865783,166.15,166.12,27.74119426]
[1748562621813,6.0175713,166.18,166.13,21.24239426]
[1748562622129,59.40287848,166.2,166.14,21.24239426]
[1748562622298,32.01648516,166.21,166.15,21.24239426]
[1748562622485,32.01648516,166.21,166.16,21.24239426]
[1748562622486,0.5,166.18,166.16,21.24239426]
[1748562622687,6.01648516,166.21,166.17,21.24239426]
[1748562622885,6.01648516,166.21,166.18,21.24239426]
[1748562623286,21.67461398,166.24,166.18,21.24239426]
[1748562623287,6.01576129,166.23,166.18,21.24239426]
[1748562623587,6.01576129,166.23,166.19,21.24239426]
[1748562624116,6.01539942,166.24,166.21,21.24239426]
[1748562624629,6.01539942,166.24,166.16,26.0]
[1748562624928,6.01539942,166.24,166.22,21.24239426]
[1748562625103,15.03640069,166.27,166.2,6.5743]
[1748562625104,21.05071475,166.27,166.2,27.81669426]
[1748562625794,6.01431406,166.27,166.22,21.24239426]
[1748562625989,6.01431406,166.27,166.22,22.75639426]
[1748562626217,44.26,166.31,166.24,21.24239426]
[1748562626422,15.03307276,166.3,166.22,22.75639426]
[1748562627017,21.04630186,166.3,166.23,21.24239426]
[1748562627328,21.04630186,166.3,166.22,22.75639426]
[1748562628115,26.0,166.27,166.22,1.514]
[1748562629003,21.05136532,166.26,166.22,1.514]
[1748562629848,6.0146758,166.26,166.22,22.75639426]
[1748562630158,6.0146758,166.26,166.22,1.514]
[1748562630656,51.12474436,166.26,166.18,1.6491]
[1748562630937,21.05136532,166.26,166.2,21.24239426]
[1748562631138,15.03668952,166.26,166.21,21.24239426]
[1748562631319,15.03668952,166.26,166.19,21.24239426]
[1748562631720,15.03668952,166.26,166.2,21.24239426]
[1748562632415,15.03668952,166.26,166.19,21.24239426]
[1748562632615,0.5,166.25,166.2,21.24239426]
[1748562633141,6.01539942,166.24,166.19,21.24239426]
[1748562633635,21.05389797,166.24,166.18,22.89149426]
[1748562635041,6.01539942,166.24,166.2,21.24239426]
[1748562635755,6.01539942,166.24,166.19,21.24239426]
[1748562636245,21.05389797,166.24,166.19,21.24239426]
[1748562636446,21.05389797,166.24,166.18,1.6491]
[1748562636650,21.05389797,166.24,166.18,22.89149426]
[1748562636849,21.05389797,166.24,166.18,1.6491]
[1748562639251,21.05389797,166.24,166.19,21.24239426]
[1748562639443,6.01539942,166.24,166.21,21.24239426]
[1748562639919,6.01359071,166.29,166.23,21.24239426]
[1748562640432,47.04756749,166.29,166.22,21.24239426]
[1748562640627,6.01359071,166.29,166.24,21.24239426]
[1748562640952,6.01359071,166.29,166.26,21.24239426]
[1748562641120,6.01359071,166.29,166.27,21.24239426]
[1748562641321,15.03184999,166.32,166.27,21.24239426]
[1748562641635,15.03184999,166.32,166.28,21.24239426]
[1748562641847,15.03184999,166.32,166.27,21.24239426]
[1748562642145,15.03184999,166.32,166.26,1.5113]
[1748562642146,6.01214453,166.33,166.28,21.24239426]
[1748562642355,6.01214453,166.33,166.29,21.24239426]
[1748562642521,6.01214453,166.33,166.3,21.24239426]
[1748562642730,6.01214453,166.33,166.29,21.24239426]
[1748562643443,6.01214453,166.33,166.31,21.24239426]
[1748562643639,6.01069904,166.37,166.3,21.24239426]
[1748562644650,21.03744665,166.37,166.31,21.24239426]
[1748562644817,21.03744665,166.37,166.3,21.24239426]
[1748562645325,21.03744665,166.37,166.27,13.9]
[1748562645527,21.03744665,166.37,166.3,21.24239426]
[1748562645948,21.03744665,166.37,166.27,13.9]
[1748562646450,26.0,166.34,166.29,21.24239426]
[1748562647454,26.0,166.34,166.28,21.24239426]
[1748562647628,6.01214453,166.33,166.28,21.24239426]
[1748562647954,21.04250585,166.33,166.28,21.24239426]
[1748562648626,21.04250585,166.33,166.29,21.24239426]
[1748562651532,21.04250585,166.33,166.28,21.24239426]
[1748562651752,21.04250585,166.33,166.29,21.24239426]
[1748562652035,6.01214453,166.33,166.29,21.24239426]
[1748562652250,6.01214453,166.33,166.3,21.24239426]
[1748562652450,0.28432314,166.39,166.32,21.24239426]
[1748562652451,15.02528855,166.39,166.32,21.24239426]
[1748562652852,15.02528855,166.39,166.34,21.24239426]
[1748562652853,41.02528855,166.39,166.34,21.24239426]
[1748562653058,15.02528855,166.39,166.34,21.24239426]
[1748562653428,26.0,166.38,166.34,21.24239426]
[1748562653850,6.01033778,166.38,166.34,22.87739426]
[1748562654037,6.01033778,166.38,166.35,21.24239426]
[1748562654358,6.01033778,166.38,166.36,21.24239426]
[1748562654947,6.01033778,166.38,166.34,1.635]
[1748562655257,21.03618223,166.38,166.34,1.635]
[1748562655768,21.03618223,166.38,166.35,21.24239426]
[1748562656261,56.04501333,166.42,166.35,21.24239426]
[1748562656262,21.03238987,166.41,166.35,21.24239426]
[1748562657473,64.11238987,166.41,166.35,21.24239426]
[1748562658031,94.15866112,166.41,166.34,22.87739426]
[1748562658342,94.15866112,166.41,166.34,1.635]
[1748562658746,94.15866112,166.41,166.32,27.57019426]
[1748562660267,21.03238987,166.41,166.33,18.79181043]
[1748562660446,21.03238987,166.41,166.36,21.24239426]
[1748562661069,21.03238987,166.41,166.33,21.24239426]
[1748562661640,21.03238987,166.41,166.32,6.3278]
[1748562661866,11.5,166.4,166.33,21.24239426]
[1748562662575,6.00997656,166.39,166.34,21.24239426]
[1748562663143,21.03491796,166.39,166.34,21.24239426]
[1748562663346,21.03491796,166.39,166.32,27.57019426]
[1748562664376,6.00997656,166.39,166.34,21.24239426]
[1748562664571,6.00997656,166.39,166.32,6.3278]
[1748562664572,6.00997656,166.39,166.35,21.24239426]
[1748562665586,11.5,166.4,166.37,21.24239426]
[1748562665587,6.00974451,166.4,166.37,21.24239426]
[1748562666882,21.03028496,166.43,166.37,21.24239426]
[1748562667470,21.03028496,166.43,166.34,13.54216157]
[1748562667471,21.03028496,166.43,166.38,22.89959426]
[1748562668082,21.03028496,166.43,166.38,1.6572]
[1748562669771,63.67028496,166.43,166.38,1.6572]
[1748562672072,21.03028496,166.43,166.36,21.24239426]
[1748562672281,63.61028496,166.43,166.36,21.24239426]
[1748562672990,63.61028496,166.43,166.37,21.24239426]
[1748562673968,63.61028496,166.43,166.37,12.71264209]
[1748562675402,21.03028496,166.43,166.37,12.71264209]
[1748562676412,32.53028496,166.43,166.37,12.71264209]
[1748562676726,32.53028496,166.43,166.38,12.71264209]
[1748562678191,17.50853211,166.43,166.39,12.71264209]
[1748562680299,17.50853211,166.43,166.36,0.14216157]
[1748562680497,17.50853211,166.43,166.38,12.71264209]
[1748562680693,17.50853211,166.43,166.4,12.71264209]
[1748562682293,6.00853211,166.43,166.4,12.71264209]
[1748562682511,6.00853211,166.43,166.39,12.71264209]
[1748562684104,21.02758693,166.45,166.39,12.71264209]
[1748562687321,21.02758693,166.45,166.4,12.71264209]